Cogmind - Beta 15 @@@ ROGUE MODE // 2025.06.09 @ 22:33:42 Player: Skysub Result: Destroyed by 6V-NRU(R) with Subdweller Shrapnel Launcher Performance ------------- Evolutions (0) 0 Regions Visited (2) 400 Robots Destroyed (9) 45 Value Destroyed (225) 225 Prototype IDs (11) 220 Alien Tech Used (0) 0 Bonus (0) 0 TOTAL SCORE: 890 Bonus ------- None Cogmind --------- Core Integrity 0/250 Matter 280/300 Energy 198/200 System Corruption 0% Temperature Cool (0) Movement Rolling (105) Location -10/Subcaves Parts ------- > --- POWER (1) -------- Subdweller Power Source > --- PROPULSION (2) --- Compact Wheel Subdweller Monowheel > --- UTILITY (2) ------ Large Storage Unit Structural Scanner > --- WEAPON (2) ------- Subdweller Laser Subdweller Machine Gun > --- INVENTORY (15) --- Ion Engine Subdweller Power Source Subdweller Power Source Spiked Treads Wheel Subdweller Monowheel Small Storage Unit Subdweller Optics Gun Armor Scrap Shield Battle Rifle Mining Laser Enhanced Flamer Peak State ------------ > --- POWER ------------ Subdweller Power Source > --- PROPULSION ------- Compact Wheel Subdweller Monowheel > --- UTILITY ---------- Large Storage Unit Structural Scanner > --- WEAPON ----------- Subdweller Laser Subdweller Machine Gun > --- INVENTORY -------- Ion Engine Subdweller Power Source Subdweller Power Source Spiked Treads Wheel Subdweller Monowheel Small Storage Unit Subdweller Optics Gun Armor Scrap Shield Battle Rifle Mining Laser Enhanced Flamer [Rating: 14] Favorites ----------- Power Light Ion Engine Engine Light Ion Engine Propulsion Light Treads Treads Light Treads Wheel Subdweller Monowheel Utility Large Storage Unit Device Structural Scanner Storage Large Storage Unit Weapon Light Assault Rifle Energy Gun Subdweller Laser Ballistic Gun Light Assault Rifle Special Weapon Mining Laser Build | -11 -10 -10 ------- Run | Yrd Mat Sub Slots Evolved . | . . . Power . | . . . Propulsion . | . . . Utility . | . . . Weapon . | . . . Parts Attached 17 | 6 2 9 Power 2 | 1 . 1 Engine 2 | 1 . 1 Core . | . . . Reactor . | . . . Propulsion 5 | 2 . 3 Treads 2 | 2 . . Leg . | . . . Wheel 3 | . . 3 Hover . | . . . Flight . | . . . Utility 3 | 1 2 . Device 1 | . 1 . Storage 2 | 1 1 . Processor . | . . . Hackware . | . . . Protection . | . . . Artifact . | . . . Weapon 7 | 2 . 5 Energy Gun 2 | . . 2 Energy Cannon . | . . . Ballistic Gun 3 | 2 . 1 Ballistic Cannon . | . . . Launcher . | . . . Special Weapon 2 | . . 2 Impact Weapon . | . . . Slashing Weapon . | . . . Piercing Weapon . | . . . Special Melee Weapon . | . . . Unidentified Prototypes . | . . . Parts Lost 5 | . . 5 Power 1 | . . 1 Propulsion 2 | . . 2 Utility . | . . . Weapon 2 | . . 2 Highest Loss Streak 3 | . . 3 To Critical Strikes 1 | . . 1 Average Backups 8 | 3 5 10 Power 1 | . 1 2 Propulsion 2 | 1 2 2 Utility 1 | . . 2 Weapon 2 | 1 2 3 Tool/Special . | . . . Unused Backups 10 | . . 10 Power 3 | . . 3 Propulsion 2 | . . 2 Utility 3 | . . 3 Weapon 2 | . . 2 Tool/Special . | . . . Average Slot Usage (%) 89 | . 87 89 Engine 10 | . 14 9 Treads 17 | . 28 13 Wheel 8 | . . 11 Device 9 | . 1 11 Storage 14 | . 14 14 Energy Gun 6 | . . 9 Ballistic Gun 19 | . 28 16 Special Weapon 1 | . . 2 Peak Build Rating 14 | 6 7 14 Average Rating 8 | 5 6 9 On Entrance 4 | . 6 7 Naked Turns . | . . . Heaviest Build 34 | 11 31 34 Greatest Support 40 | 40 40 40 Greatest Overweight (x) 1 | . . 1 Average Overweight (x) . | . . . Largest Inventory Capacity 15 | 8 15 15 Average Capacity 13 | 7 14 15 Most Carried 15 | 5 7 15 Average Carried 8 | 3 6 10 Final Capacity 15 | 8 15 15 Final Carried 14 | 5 7 14 Class Distribution -------------------- 73% | Mutant 26% | Scavenger-Mutant Dominant Class ---------------- Mutant | -10/Materials Mutant | -10/Subcaves Resources | -11 -10 -10 ----------- Run | Yrd Mat Sub Matter Collected 434 | 209 102 123 Remotely . | . . . Salvage Created 361 | 20 120 221 Parts 25 | 3 9 13 Haulers Intercepted . | . . . Recyclers Shooed . | . . . Parts Field Recycled . | . . . Retrieved Matter . | . . . Parts Self-Destructed . | . . . Prevented . | . . . Kills | -11 -10 -10 ------- Run | Yrd Mat Sub Combat Hostiles Destroyed 5 | . . 5 Guns 5 | . . 5 Classes Destroyed 4 | 1 2 1 Builder 1 | . 1 . Tunneler 2 | 1 1 . Recycler 1 | . 1 . Subdweller 5 | . . 5 Best Kill Streak 3 | 1 3 2 Combat Bots Only 2 | . . 2 Max Kills in Single Turn 1 | 1 1 1 Gunslinging . | . . . Exploded . | . . . Melee . | . . . Uniques/NPCs Destroyed . | . . . Combat | -11 -10 -10 -------- Run | Yrd Mat Sub Hostile Shots Fired 54 | . . 54 Missed 16 | . . 16 Hits 38 | . . 38 Projectile 38 | . . 38 AOE 3 | . . 3 Critical Strikes 1 | . . 1 Damage Taken 938 | . . 938 Core 256 | . . 256 Absorbed by Shields . | . . . Core Remaining (%) 100 | 100 . . Volleys Fired 45 | 3 6 36 Largest 2 | 2 2 2 Hottest 100 | 40 40 100 Shots Fired 84 | 6 12 66 Gun 80 | 6 12 62 Cannon . | . . . Launcher . | . . . Special 4 | . . 4 Kinetic 56 | 6 12 38 Thermal 28 | . . 28 Explosive . | . . . Electromagnetic . | . . . Robot Hit Streak 42 | 2 5 42 Robot Miss Streak 2 | 2 1 1 Penetration Max . | . . . Secondary Targets . | . . . Shots Hit Robots 67 | 3 8 56 Core Hits 21 | 2 6 13 Critical Kills . | . . . Critical Parts Destroyed . | . . . Critical Strikes 3 | . . 3 Burn 3 | . . 3 Melee Attacks . | . . . Impact . | . . . Slashing . | . . . Piercing . | . . . Sneak Attacks . | . . . Combat Hostiles . | . . . Follow-up Attacks . | . . . Damage Inflicted 856 | 42 103 711 Guns 854 | 40 103 711 Cannons . | . . . Explosions . | . . . Melee . | . . . Ramming 2 | 2 . . Kinetic 527 | 40 103 384 Thermal 327 | . . 327 Explosive . | . . . Electromagnetic . | . . . Impact . | . . . Slashing . | . . . Piercing . | . . . Highest Corruption . | . . . Average Corruption . | . . . Corruption Purged . | . . . Corruption Blocked . | . . . Overload Shots . | . . . Overflow Damage . | . . . Projectiles . | . . . Explosions . | . . . Melee . | . . . Knockbacks . | . . . Impact . | . . . Kinetic . | . . . Secondary . | . . . Self-Inflicted Damage . | . . . Shots . | . . . Rammed 1 | 1 . . Targets Rammed 1 | 1 . . Kicked . | . . . Crushed . | . . . Highest Temperature 1 | . . 1 Average Temperature 1 | . . 1 Received Heat Transfer 204 | . . 204 Siege Activations . | . . . Martial Activations . | . . . Shielding Activations . | . . . Robots Disrupted . | . . . Combat Hostiles . | . . . Robots Corrupted . | . . . Combat Hostiles . | . . . Parts Fried . | . . . Impact Corruptions . | . . . Robots Melted . | . . . Combat Hostiles . | . . . Parts Melted 3 | . . 3 Heat Transferred 1013 | . . 1013 Parts Sabotaged . | . . . Parts Stolen . | . . . Parts Stripped . | . . . Power Chain Reactions . | . . . Alert | -11 -10 -10 ------- Run | Yrd Mat Sub Maximum Alert Level . | . . . Low Security (%) 100 | 100 100 . Level 1 . | . . . Level 2 . | . . . Level 3 . | . . . Level 4 . | . . . Level 5 . | . . . High Security . | . . . Max Security . | . . . Peak Influence 10 | 5 10 . Initial . | . . . Average . | . 1 . Influence Increases 20 | 5 15 . Destroy 0b10 Robot/NC 20 | 5 15 . Influence Decreases 20 | 5 15 . Time Decay 20 | 5 15 . Squads Dispatched 1 | . 1 . Investigation . | . . . Extermination . | . . . Reinforcement 1 | . 1 . Assault . | . . . Garrison . | . . . Intercept . | . . . Searches Triggered . | . . . Construction Impeded . | . . . Haulers Reinforced . | . . . Active Scanning Responses . | . . . Cargo Convoy Interrupts . | . . . Stealth | -11 -10 -10 --------- Run | Yrd Mat Sub Distress Signals . | . . . Communications Jammed . | . . . Distress Signals . | . . . Times Spotted 9 | . 2 7 Peak Tracking Total 3 | . . 3 Tactical Retreats . | . . . Traps | -11 -10 -10 ------- Run | Yrd Mat Sub Traps Triggered 1 | . . 1 Indirectly . | . . . Trap Hack Attempts . | . . . Triggered . | . . . Disarmed . | . . . Reprogrammed . | . . . Reused . | . . . Traps Extracted . | . . . Installed . | . . . Triggered . | . . . Machines | -11 -10 -10 ---------- Run | Yrd Mat Sub Machines Disabled 1 | . . 1 Max in Single Turn 1 | . . 1 Machines Repaired . | . . . Machines Dismantled . | . . . Machines Sabotaged . | . . . Overloaded Fab Kills . | . . . Hacking | -11 -10 -10 --------- Run | Yrd Mat Sub Machines Accessed 2 | . 1 1 Terminals 1 | . 1 . Fabricators . | . . . Repair Stations . | . . . Recycling Units . | . . . Scanalyzers . | . . . Garrison Access . | . . . Total Hacks 4 | . 3 1 Successful 2 | . 1 1 Failed 2 | . 2 . Catastrophic . | . . . Database Lockouts . | . . . Manual 1 | . 1 . Terminals 3 | . 3 . Fabricators . | . . . Repair Stations . | . . . Recycling Units . | . . . Scanalyzers . | . . . Garrison Access . | . . . Terminal Hacks 1 | . . 1 Proto ID Catalog 1 | . . 1 Fabricator Hacks . | . . . Repair Station Hacks . | . . . Recycling Unit Hacks . | . . . Scanalyzer . | . . . Garrison Access Hacks . | . . . Unauthorized Hacks 1 | . 1 . Terminals 1 | . 1 . Botnet 1 | . 1 . Fabricators . | . . . Repair Stations . | . . . Recycling Units . | . . . Scanalyzers . | . . . Garrison Access . | . . . Data Cores Recovered . | . . . Used . | . . . Hacking Detections 1 | . 1 . Full Trace Events . | . . . Feedback Events . | . . . Feedback Blocked . | . . . Robot Schematics Acquired . | . . . Robots Built . | . . . Authchips . | . . . Time . | . . . Total Robot Build Rating . | . . . Part Schematics Acquired . | . . . Parts Built . | . . . Authchips . | . . . Time . | . . . Total Part Build Rating . | . . . Parts Repaired . | . . . Time . | . . . Parts Recycled . | . . . Recycled Matter . | . . . Retrieved Matter . | . . . Retrieved Components . | . . . Parts Scanalyzed . | . . . Part Schematics Acquired . | . . . Parts Damaged . | . . . Bothacking | -11 -10 -10 ------------ Run | Yrd Mat Sub Used RIF Installer . | . . . Robots Hacked . | . . . Non-combat . | . . . Combat . | . . . Robot Hacks Applied . | . . . Relay Couplers Released . | . . . Fabnet Peak Effective % . | . . . Robots Rewired . | . . . Allies Hacked . | . . . Hacks Repelled . | . . . Allies | -11 -10 -10 -------- Run | Yrd Mat Sub Total Allies . | . . . Largest Group . | . . . Highest-Rated Group . | . . . Highest-Rated Ally . | . . . Total Orders . | . . . Ally Attacks . | . . . Total Damage . | . . . Kills . | . . . Allies Corrupted . | . . . Allies Melted . | . . . Intel | -11 -10 -10 ------- Run | Yrd Mat Sub Active Infowar (turns) 449 | . 15 434 Structural 449 | . 15 434 Robot Analysis Total . | . . . Derelict Logs Recovered 1 | . . 1 Drone Launches . | . . . Drone Recoveries . | . . . Exploration | -11 -10 -10 ------------- Run | Yrd Mat Sub Turns Passed 779 | 89 162 528 Spaces Moved 437 | 47 86 304 Core 8 | 8 . . Treads 222 | 39 86 97 Legs . | . . . Wheels 207 | . . 207 Hover . | . . . Flight . | . . . Fastest Speed 50 | 50 160 105 Average Speed 136 | 141 160 129 Slowest Speed 240 | 160 160 240 Overloaded Moves . | . . . Propulsion Burnouts . | . . . Robots Hopped . | . . . Potential Cave-ins . | . . . Cave-ins Triggered . | . . . Exploration Rate (%) 14 | 4 16 24 Regions Visited 2 Branch Regions 1 Pre-discovered Areas . | . . . Known Exits Taken . | . . . Unknown Exits Taken 2 | 1 1 . Scrap Searched 5 | . . 5 Spaces Dug . | . . . Terrain Destroyed . | . . . Melee . | . . . Projectile . | . . . AOE . | . . . Terrain Rammed . | . . . Walls Destroyed . | . . . Machines Disabled . | . . . Actions | -11 -10 -10 --------- Run | Yrd Mat Sub Total 530 | 61 99 370 Wait 7 | . 4 3 Move 435 | 46 85 304 Hop . | . . . Pick Up 18 | 5 1 12 Fast Attach 10 | 6 2 2 Attach 4 | . . 4 Detach 2 | . 1 1 Swap 5 | . . 5 Drop 3 | . . 3 Fire 45 | 3 6 36 Melee . | . . . Ram . | . . . Kick . | . . . Crush 1 | 1 . . Escape Stasis . | . . . Rewire . | . . . Trap . | . . . Miscellaneous . | . . . Route ------- -11/Scrapyard -10/Materials -10/Subcaves History --------- Turn | Location | Event 5 | -11/Scrapyard | Discovered new exit (range 15) 90 | -11/Scrapyard | Entered Materials 195 | -10/Materials | Discovered new exit (range 12) 252 | -10/Materials | Entered Subcaves 253 | -10/Subcaves | Approached by a straggling Scientist 289 | -10/Subcaves | Learned 2 Materials zone layouts 315 | -10/Subcaves | Build established: Mutant 393 | -10/Subcaves | Visited 4L-MR0's lab 532 | -10/Subcaves | Found Gun Armor 626 | -10/Subcaves | Lost 3 parts (1p1n1w) 739 | -10/Subcaves | Core integrity fell below 50% 779 | -10/Subcaves | Core integrity fell below 20% 780 | -10/Subcaves | Destroyed by 6V-NRU(R) with Subdweller Shrapnel Launcher Last Messages --------------- 1B-BIN(c): "I think it's somewhere southeast of here" Searching scrap... Found Battle Rifle. Found Battle Cannon. Found 64 Matter. Searching scrap... Found Multitool. Found Sub. Laser. Found 66 Matter. Searching scrap... Found Battle Rifle. Found 37 Matter. Dropped Lgt. Assault Rifle. Acquired Battle Rifle. 1B-BIN(c) triggered Piercing Trap. Spikes shoot up from the floor. 1B-BIN(c) suffers critical hit (Impale). 1B-BIN(c) destroyed. Subatomizers dissect the Mining Laser. Sub. Monowheel shoots sparks and powers down. Map ----- +----------------------------------------------------+ | ###???? ##????????????????????????????? | | ####### ###???????????????????????????? | | ###### ? #####?????????????????????????? | | # ##?# ######???????????????????????? | | ### ##### ####???????????????????????? | | ### ##### ##???????????????????????? | | ## ##???????????????????????? | | ##???????????????????????? | | #### ###???????????????????????? | | #### ##???????????????????????? | | ?### ### ##???????????????????????? | | ?## ##### ##???????????????????????? | | ?## ## #### ####??????????????????????? | | ?### ### ###### ###??????????????????????? | | ?################### ###?????????????????????? | | ??###############?## #####???????????????????? | | ??????????????????#### ####???????????????????? | | ?????????????????###### ##???????????????????? | | ?????????????????####### ###???????????????????? | | ?????????????????## # # #Y ####??????????????????? | | ?????????????????### #####?????????????????? | | ?????????????????### # # ;;####????????????????? | | ?????????????????## ### ###????????????????? | | ????????????????#### #;;; ##????????????????? | | ???????????????#### ;; ###????????????????? | | ??????????###?#### @ ###????????????????? | | ??????????##"& ##< ;###????????????????? | | ??????????## # R ##????????????????? | | ???????????? ##<#< ##????????????????? | | ???????????? ### ##????????????????? | | ????????????? ## ; ##????????????????? | | ??????????????#### ;; ##????????????????? | | ??????????????### #####????????????????? | | ???????????????#### #; ####????????????????? | | ???????????????##### ### ##?????????????????? | | ?????????????????######### ##?????????????????? | | ??????????????????########## ##?????????????????? | | ????????????????????????########?????????????????? | | ???????????????????????????#####?????????????????? | | ?????????????????????????????????????????????????? | | ?????????????????????????????????????????????????? | | ?????????????????????????????????????????????????? | | ?????????????????????????????????????????????????? | | ?????????????????????????????????????????????????? | | ?????????????????????????????????????????????????? | | ?????????????????????????????????????????????????? | | ?????????????????????????????????????????????????? | | ?????????????????????????????????????????????????? | | ?????????????????????????????????????????????????? | | ?????????????????????????????????????????????????? | +----------------------------------------------------+ Best States ------------- Heat Dissipation 25 Energy Generation 15 Energy Capacity 200 Matter Stores 300 Matter Capacity 300 Sight Range 16 Terrain Scan Density 10 Evasion (%) 50 Recoil Reduction 2 Item Schematics ----------------- None Robot Schematics ------------------ None Fabricated ------------ Nothing Repaired ---------- Nothing Alien Tech Used ----------------- None Achievements -------------- None Challenges ------------ None Game ------ Seed AutogunAnalysisExoskeleton Manual? 0 Play Time 00:06:12 Cumulative 121.9 hours Start 2025.06.09 @ 22:28:02 End 2025.06.09 @ 22:33:42 Sessions 1 Manual Loads 0 Difficulty Rogue Special Mode None Game No. 125 Rogue 125 Adventurer 0 Explorer 0 Win Type - Total 2 Types 1/0/0/1/0/0/0/0/0/0 Lore% 60 Gallery% 56 Achievement% 51 Wizard Run 0 Options --------- Layout 1 ASCII 0 Keyboard 1 Movement Numpad Keybinds 0 Fullscreen 1 Font 32/SmallcapsGlow Map View 77x35 Zoom Use 0% Tactical HUD 0 Map Filters NONE Filters NONE Steam 1 RUN: 4699d82c-4636-4204-beee-bb34ead5f1c9